fUSD/lending_fUSD_20260605
["ID","MTS","AMOUNT","RATE_DAILY","PERIOD"]
[424123692,1780605041000,-150.0,0.00014029,2]
[424123664,1780605041000,-737.89697117,0.00013858,2]
[424123653,1780605041000,-150.0,0.00013821,2]
[424123666,1780605041000,-119172.85095924,0.00013858,2]
[424123714,1780605041000,-12376.93431688,0.00014118,2]
[424123643,1780605041000,-63.82342501,0.00013699,2]
[424123642,1780605041000,-136.17657499,0.00013699,2]
[424123637,1780605041000,-150.0,0.00013571,2]
[424123641,1780605041000,-150.0,0.00013696,2]
[424123638,1780605041000,-469.56972227,0.00013593,2]
[424123644,1780605041000,-166.66,0.00013699,2]
[424123639,1780605041000,-150.0,0.00013613,2]
[424123640,1780605041000,-150.0,0.00013654,2]
[424123645,1780605041000,-337.32,0.00013699,2]
[424123648,1780605041000,-172.92443764,0.00013778,2]
[424123646,1780605041000,-150.0,0.00013737,2]
[424123673,1780605041000,-4442.89061473,0.00013888,2]
[424123647,1780605041000,-4442.89061475,0.00013762,2]
[424123656,1780605041000,-25603.90278024,0.00013858,2]
[424123650,1780605041000,-150.0,0.00013779,2]
[424123652,1780605041000,-12376.9343169,0.00013804,2]
[424123655,1780605041000,-1041.372332,0.0001385,2]
[424123654,1780605041000,-166.66,0.00013836,2]
[424123651,1780605041000,-150.0,0.00013787,2]
[424123658,1780605041000,-570.72982862,0.00013858,2]
[424123657,1780605041000,-31684.9317,0.00013858,2]
[424123660,1780605041000,-1030.0331493,0.00013858,2]
[424123659,1780605041000,-18854.93765589,0.00013858,2]
[424123662,1780605041000,-948.89821074,0.00013858,2]
[424123661,1780605041000,-2034.3987448,0.00013858,2]
[424123649,1780605041000,-2327.07556236,0.00013778,2]
[424123726,1780605041000,-425.80079699,0.00014159,2]
[424123732,1780605041000,-150.0,0.00014195,2]
[424123728,1780605041000,-241.584218,0.0001416,2]
[424123789,1780605041000,-152.0,0.00014504,2]
[424123793,1780605041000,-152.0,0.0001452,2]
[424123795,1780605041000,-152.0,0.0001452,2]
[424123791,1780605041000,-6253.10437193,0.00014515,2]
[424123797,1780605041000,-152.0,0.0001452,2]
[424123801,1780605041000,-152.0,0.0001452,2]
[424123803,1780605041000,-152.0,0.0001452,2]
[424123807,1780605041000,-150.0,0.00014528,2]
[424123805,1780605041000,-4442.89061473,0.00014521,2]
[424123811,1780605041000,-316.17,0.00014534,2]
[424123809,1780605041000,-1198.84,0.00014534,2]
[424123820,1780605041000,-150.0,0.00014653,2]
[424123799,1780605041000,-152.0,0.0001452,2]
[424123813,1780605041000,-150.0,0.0001457,2]
[424123818,1780605041000,-500.0,0.00014618,2]
[424123817,1780605041000,-150.0,0.00014612,2]
[424123815,1780605041000,-150.0,0.00014612,2]
[424123822,1780605041000,-150.0,0.00014687,2]
[424123819,1780605041000,-4442.89061473,0.00014647,2]
[424123826,1780605041000,-2000.0,0.000147,2]
[424123828,1780605041000,-500.0,0.000147,2]
[424123830,1780605041000,-150.0,0.00014737,2]
[424123832,1780605041000,-12376.93431688,0.00014745,2]
[424123835,1780605041000,-420.601699,0.00014748,2]
[424123839,1780605041000,-150.0,0.00014778,2]
[424123837,1780605041000,-4442.89061473,0.00014774,2]
[424123824,1780605041000,-150.0,0.00014695,2]
[424123787,1780605041000,-152.0,0.00014488,2]
[424123724,1780605041000,-150.0,0.00014154,2]
[424123783,1780605041000,-152.0,0.00014488,2]
[424123730,1780605041000,-1972.942206,0.0001416,2]
[424123841,1780605041000,-2000.0,0.00014812,2]
[424123734,1780605041000,-171.7,0.0001422,2]
[424123745,1780605041000,-166.66,0.00014247,2]
[424123748,1780605041000,-4442.89061473,0.00014268,2]
[424123752,1780605041000,-150.0,0.0001432,2]
[424123750,1780605041000,-150.0,0.00014279,2]
[424123785,1780605041000,-152.0,0.00014488,2]
[424123740,1780605041000,-150.0,0.00014237,2]
[424123738,1780605041000,-150.0,0.00014237,2]
[424123742,1780605041000,-150.0,0.00014237,2]
[424123754,1780605041000,-6253.10437193,0.00014322,2]
[424123757,1780605041000,-150.0,0.00014362,2]
[424123736,1780605041000,-6253.10437193,0.00014226,2]
[424123760,1780605041000,-150.0,0.00014368,2]
[424123756,1780605041000,-500.0,0.00014335,2]
[424123767,1780605041000,-150.0,0.00014404,2]
[424123765,1780605041000,-4442.89061473,0.00014394,2]
[424123761,1780605041000,-166.66,0.00014384,2]
[424123777,1780605041000,-170.80712,0.0001445,2]
[424123763,1780605041000,-150.0,0.00014387,2]
[424123779,1780605041000,-181.614241,0.0001445,2]
[424123773,1780605041000,-150.0,0.00014445,2]
[424123775,1780605041000,-160.0,0.0001445,2]
[424123769,1780605041000,-6253.10437193,0.00014418,2]
[424123771,1780605041000,-12376.93431688,0.00014431,2]
[424123781,1780605041000,-150.0,0.00014487,2]
[424123920,1780605042000,-307.54965606,0.00014999,2]
[424123932,1780605042000,-200.0,0.00015,2]
[424123924,1780605042000,-666.0,0.00014999,2]
[424123928,1780605042000,-2425856.99751204,0.00015,2]
[424123917,1780605042000,-151.0,0.00014997,2]
[424123911,1780605042000,-151.0,0.00014997,2]
[424123907,1780605042000,-151.0,0.00014997,2]
[424123909,1780605042000,-151.0,0.00014997,2]
[424123905,1780605042000,-151.0,0.00014997,2]
[424123913,1780605042000,-151.0,0.00014997,2]
[424123915,1780605042000,-151.0,0.00014997,2]
[424123930,1780605042000,-500.0,0.00015,2]
[424123971,1780605042000,-414.38,0.000153,2]
[424123922,1780605042000,-300.0,0.00014999,2]
[424123926,1780605042000,-6968418.05537332,0.00015,2]
[424123936,1780605042000,-196.0,0.00015,2]
[424123938,1780605042000,-196.0,0.00015,2]
[424123942,1780605042000,-240.0,0.00015,2]
[424123940,1780605042000,-196.0,0.00015,2]
[424123944,1780605042000,-160.0,0.00015,2]
[424123946,1780605042000,-12376.93431688,0.00015059,2]
[424123960,1780605042000,-232.918801,0.00015173,2]
[424123962,1780605042000,-1500.0,0.00015175,2]
[424123969,1780605042000,-225.57,0.000153,2]
[424123948,1780605042000,-4549.62,0.00015065,2]
[424123903,1780605042000,-151.0,0.00014997,2]
[424123934,1780605042000,-553.1,0.00015,2]
[424123901,1780605042000,-852.77916044,0.0001499,2]
[424123879,1780605042000,-400.67,0.00014985,2]
[424123895,1780605042000,-191.20949071,0.0001499,2]
[424123958,1780605042000,-500.0,0.00015166,2]
[424123843,1780605042000,-150.0,0.0001482,2]
[424123845,1780605042000,-427.96,0.0001484,2]
[424123853,1780605042000,-3135.14566189,0.000149,2]
[424123847,1780605042000,-150.0,0.00014861,2]
[424123858,1780605042000,-2230.93705576,0.000149,2]
[424123856,1780605042000,-4442.89061473,0.000149,2]
[424123849,1780605042000,-188.04265458,0.000149,2]
[424123851,1780605042000,-4375.21893741,0.000149,2]
[424123860,1780605042000,-1949.51028907,0.000149,2]
[424123862,1780605042000,-384.15816498,0.000149,2]
[424123864,1780605042000,-150.0,0.00014903,2]
[424123899,1780605042000,-852.77916044,0.0001499,2]
[424123875,1780605042000,-1000.0,0.00014958,2]
[424123868,1780605042000,-1091.020523,0.00014908,2]
[424123877,1780605042000,-45676.0,0.00014959,2]
[424123870,1780605042000,-191.20949071,0.00014925,2]
[424123872,1780605042000,-150.0,0.00014945,2]
[424123881,1780605042000,-417.96,0.00014985,2]
[424123883,1780605042000,-997.73,0.00014985,2]
[424123887,1780605042000,-150.0,0.00014986,2]
[424123885,1780605042000,-150.0,0.00014986,2]
[424123889,1780605042000,-150.0,0.00014986,2]
[424123893,1780605042000,-150.0,0.00014986,2]
[424123891,1780605042000,-150.00000078,0.00014986,2]
[424123897,1780605042000,-852.77916044,0.0001499,2]
[424123866,1780605042000,-1000.0,0.00014908,2]
[424123967,1780605042000,-193.15,0.000153,2]
[424123964,1780605042000,-454.17693194,0.00015284,7]
[424123954,1780605042000,-1000.0,0.00015116,2]
[424124042,1780605042000,-294.99004776,0.00015714,2]
[424124044,1780605042000,-1555.5,0.00015723,2]
[424124040,1780605042000,-444.0,0.00015707,2]
[424124036,1780605042000,-453.0,0.00015707,2]
[424124048,1780605042000,-948.1794024,0.00015734,7]
[424124038,1780605042000,-447.0,0.00015707,2]
[424124050,1780605042000,-168.638858,0.00015751,2]
[424124053,1780605042000,-384.15816497,0.00015769,2]
[424124055,1780605042000,-449.0,0.00015877,2]
[424124060,1780605042000,-285.78132935,0.00015923,7]
[424124057,1780605042000,-444.0,0.00015877,2]
[424124070,1780605042000,-12376.93431688,0.00016,2]
[424124072,1780605042000,-675.79510841,0.00016072,2]
[424124075,1780605042000,-500.0,0.00016072,2]
[424124079,1780605042000,-500.0,0.00016072,2]
[424124081,1780605042000,-500.0,0.00016072,2]
[424124083,1780605042000,-500.0,0.00016072,2]
[424124086,1780605042000,-500.0,0.00016072,2]
[424124077,1780605042000,-500.0,0.00016072,2]
[424124092,1780605042000,-500.0,0.00016072,2]
[424124094,1780605042000,-500.0,0.00016072,2]
[424124090,1780605042000,-500.0,0.00016072,2]
[424124088,1780605042000,-500.0,0.00016072,2]
[424124098,1780605042000,-500.0,0.00016072,2]
[424124095,1780605042000,-500.0,0.00016072,2]
[424123950,1780605042000,-725.88,0.00015068,2]
[424124101,1780605042000,-500.0,0.00016072,2]
[424124046,1780605042000,-454.17693194,0.00015734,7]
[424124033,1780605042000,-12376.93431688,0.00015686,2]
[424124068,1780605042000,-302.87295711,0.00016,2]
[424124027,1780605042000,-211.30064817,0.00015599,2]
[424124030,1780605042000,-1000.0,0.000156,2]
[424123952,1780605042000,-500.0,0.000151,3]
[424123956,1780605042000,-164.83,0.0001515,2]
[424123977,1780605042000,-217.70369812,0.0001547,2]
[424123987,1780605042000,-175.09468095,0.0001558,2]
[424123996,1780605042000,-447.0,0.00015586,2]
[424123973,1780605042000,-1252.0,0.00015317,2]
[424123989,1780605042000,-150.0,0.00015585,2]
[424123979,1780605042000,-357.99,0.0001547,2]
[424123991,1780605042000,-151.0,0.00015585,2]
[424123985,1780605042000,-688.458657,0.00015547,2]
[424123981,1780605042000,-4609.0,0.00015487,2]
[424123983,1780605042000,-424.229328,0.00015547,2]
[424123980,1780605042000,-191.18259,0.00015485,2]
[424123965,1780605042000,-948.1794024,0.00015284,7]
[424124018,1780605042000,-239.6949412,0.00015595,2]
[424123975,1780605042000,-12376.93431688,0.00015373,2]
[424124000,1780605042000,-445.0,0.00015587,2]
[424124004,1780605042000,-454.0,0.00015589,2]
[424124002,1780605042000,-451.0,0.00015587,2]
[424124012,1780605042000,-446.0,0.00015594,2]
[424123998,1780605042000,-449.0,0.00015586,2]
[424124007,1780605042000,-448.0,0.00015589,2]
[424124009,1780605042000,-454.0,0.00015594,2]
[424123993,1780605042000,-151.0,0.00015585,2]
[424124022,1780605042000,-162.84847885,0.00015599,2]
[424124024,1780605042000,-547.83691061,0.00015599,2]
[424124015,1780605042000,-442.0,0.00015594,2]
[424124195,1780605043000,-948.1794024,0.00016183,7]
[424124197,1780605043000,-302.87295711,0.000162,2]
[424124161,1780605043000,-499.99,0.00016116,2]
[424124184,1780605043000,-9999.99,0.00016116,2]
[424124182,1780605043000,-19811.59,0.00016116,2]
[424124193,1780605043000,-454.17693194,0.00016183,7]
[424124171,1780605043000,-9999.99,0.00016116,2]
[424124179,1780605043000,-629.02,0.00016116,2]
[424124175,1780605043000,-521.43,0.00016116,2]
[424124165,1780605043000,-9999.99,0.00016116,2]
[424124167,1780605043000,-2272.94,0.00016116,2]
[424124200,1780605043000,-1613.0535,0.00016271,2]
[424124178,1780605043000,-299.99,0.00016116,2]
[424124186,1780605043000,-1218.19,0.00016116,2]
[424124213,1780605043000,-516.15,0.00016438,2]
[424124188,1780605043000,-9999.99,0.00016116,2]
[424124202,1780605043000,-2000.0,0.00016293,2]
[424124205,1780605043000,-164.83,0.00016316,2]
[424124207,1780605043000,-578.494539,0.00016324,2]
[424124209,1780605043000,-237.1,0.00016352,2]
[424124219,1780605043000,-446.0,0.00016558,2]
[424124223,1780605043000,-443.0,0.00016558,2]
[424124217,1780605043000,-500.0,0.00016458,2]
[424124211,1780605043000,-3468.4,0.00016438,2]
[424124226,1780605043000,-151.0,0.00016558,2]
[424124215,1780605043000,-725.88,0.00016438,2]
[424124222,1780605043000,-455.0,0.00016558,2]
[424124191,1780605043000,-260.96109,0.00016133,2]
[424124163,1780605043000,-3750.42,0.00016116,2]
[424124104,1780605043000,-500.0,0.00016072,2]
[424124169,1780605043000,-38502.23,0.00016116,2]
[424124228,1780605043000,-442.0,0.00016558,2]
[424124109,1780605043000,-150.0,0.00016072,2]
[424124113,1780605043000,-1156.78,0.00016072,2]
[424124115,1780605043000,-1156.78,0.00016072,2]
[424124119,1780605043000,-1156.78,0.00016072,2]
[424124107,1780605043000,-321.90339299,0.00016072,2]
[424124117,1780605043000,-1156.78,0.00016072,2]
[424124111,1780605043000,-1156.78,0.00016072,2]
[424124121,1780605043000,-1156.78,0.00016072,2]
[424124123,1780605043000,-500.0,0.00016072,2]
[424124125,1780605043000,-500.0,0.00016072,2]
[424124127,1780605043000,-500.0,0.00016072,2]
[424124129,1780605043000,-500.0,0.00016072,2]
[424124131,1780605043000,-500.0,0.00016072,2]
[424124144,1780605043000,-500.0,0.00016072,2]
[424124133,1780605043000,-500.0,0.00016072,2]
[424124136,1780605043000,-500.0,0.00016072,2]
[424124140,1780605043000,-500.0,0.00016072,2]
[424124138,1780605043000,-500.0,0.00016072,2]
[424124142,1780605043000,-500.0,0.00016072,2]
[424124150,1780605043000,-302.87295711,0.000161,2]
[424124146,1780605043000,-500.0,0.00016072,2]
[424124148,1780605043000,-1500000.0,0.00016073,2]
[424124152,1780605043000,-10154.61,0.00016116,2]
[424124154,1780605043000,-1198.01,0.00016116,2]
[424124156,1780605043000,-1612.5,0.00016116,2]
[424124158,1780605043000,-1103.97,0.00016116,2]
[424124173,1780605043000,-24999.99,0.00016116,2]
[424124230,1780605043000,-445.0,0.00016558,2]
[424124347,1780605043000,-500.0,0.000167,2]
[424124235,1780605043000,-451.0,0.00016558,2]
[424124300,1780605043000,-445.0,0.00016558,2]
[424124302,1780605043000,-151.0,0.00016558,2]
[424124306,1780605043000,-452.0,0.00016558,2]
[424124304,1780605043000,-448.0,0.00016558,2]
[424124310,1780605043000,-445.0,0.00016558,2]
[424124308,1780605043000,-458.0,0.00016558,2]
[424124312,1780605043000,-150.0,0.00016558,2]
[424124315,1780605043000,-446.0,0.00016558,2]
[424124317,1780605043000,-446.0,0.00016558,2]
[424124319,1780605043000,-444.0,0.00016558,2]
[424124323,1780605043000,-442.0,0.00016558,2]
[424124325,1780605043000,-480.42,0.00016637,2]
[424124327,1780605043000,-384.15816497,0.00016637,2]
[424124329,1780605043000,-3903.32,0.00016649,2]
[424124331,1780605043000,-2000.0,0.00016666,2]
[424124333,1780605043000,-530.88,0.00016666,2]
[424124353,1780605043000,-168.17,0.00016712,2]
[424124339,1780605043000,-320.27,0.00016697,2]
[424124345,1780605043000,-500.0,0.000167,2]
[424124349,1780605043000,-333.63,0.00016704,2]
[424124341,1780605043000,-500.0,0.000167,2]
[424124337,1780605043000,-215.73365239,0.00016687,2]
[424124351,1780605043000,-157.61,0.00016707,2]
[424124335,1780605043000,-160.0,0.00016679,2]
[424124355,1780605043000,-1054.53,0.00016723,2]
[424124343,1780605043000,-500.0,0.000167,2]
[424124232,1780605043000,-151.0,0.00016558,2]
[424124291,1780605043000,-456.0,0.00016558,2]
[424124294,1780605043000,-150.0,0.00016558,2]
[424124321,1780605043000,-150.0,0.00016558,2]
[424124287,1780605043000,-453.0,0.00016558,2]
[424124298,1780605043000,-456.0,0.00016558,2]
[424124245,1780605043000,-449.0,0.00016558,2]
[424124247,1780605043000,-450.0,0.00016558,2]
[424124237,1780605043000,-456.0,0.00016558,2]
[424124251,1780605043000,-151.0,0.00016558,2]
[424124238,1780605043000,-448.0,0.00016558,2]
[424124240,1780605043000,-150.0,0.00016558,2]
[424124249,1780605043000,-459.0,0.00016558,2]
[424124255,1780605043000,-456.0,0.00016558,2]
[424124253,1780605043000,-442.0,0.00016558,2]
[424124257,1780605043000,-452.0,0.00016558,2]
[424124265,1780605043000,-442.0,0.00016558,2]
[424124267,1780605043000,-454.0,0.00016558,2]
[424124266,1780605043000,-151.0,0.00016558,2]
[424124243,1780605043000,-445.0,0.00016558,2]
[424124261,1780605043000,-457.0,0.00016558,2]
[424124271,1780605043000,-454.0,0.00016558,2]
[424124289,1780605043000,-455.0,0.00016558,2]
[424124285,1780605043000,-447.0,0.00016558,2]
[424124283,1780605043000,-150.0,0.00016558,2]
[424124279,1780605043000,-457.0,0.00016558,2]
[424124281,1780605043000,-456.0,0.00016558,2]
[424124296,1780605043000,-457.0,0.00016558,2]
[424124277,1780605043000,-443.0,0.00016558,2]
[424124273,1780605043000,-444.0,0.00016558,2]
[424124263,1780605043000,-450.0,0.00016558,2]
[424124269,1780605043000,-442.0,0.00016558,2]
[424124259,1780605043000,-150.0,0.00016558,2]
[424124275,1780605043000,-153.0,0.00016558,2]
[424124438,1780605044000,-500.0,0.00016737,2]
[424124440,1780605044000,-500.0,0.00016737,2]
[424124434,1780605044000,-500.0,0.00016737,2]
[424124418,1780605044000,-500.0,0.00016737,2]
[424124430,1780605044000,-500.0,0.00016737,2]
[424124427,1780605044000,-500.0,0.00016737,2]
[424124429,1780605044000,-500.0,0.00016737,2]
[424124425,1780605044000,-500.0,0.00016737,2]
[424124424,1780605044000,-500.0,0.00016737,2]
[424124419,1780605044000,-151.0,0.00016737,2]
[424124436,1780605044000,-500.0,0.00016737,2]
[424124432,1780605044000,-500.0,0.00016737,2]
[424124446,1780605044000,-500.0,0.00016737,2]
[424124456,1780605044000,-500.0,0.00016737,2]
[424124448,1780605044000,-500.0,0.00016737,2]
[424124450,1780605044000,-500.0,0.00016737,2]
[424124454,1780605044000,-500.0,0.00016737,2]
[424124444,1780605044000,-500.0,0.00016737,2]
[424124442,1780605044000,-500.0,0.00016737,2]
[424124458,1780605044000,-500.0,0.00016737,2]
[424124464,1780605044000,-500.0,0.00016737,2]
[424124460,1780605044000,-500.0,0.00016737,2]
[424124483,1780605044000,-834.811559,0.00016737,2]
[424124471,1780605044000,-500.0,0.00016737,2]
[424124469,1780605044000,-500.0,0.00016737,2]
[424124480,1780605044000,-151.0,0.00016737,2]
[424124423,1780605044000,-500.0,0.00016737,2]
[424124452,1780605044000,-500.0,0.00016737,2]
[424124422,1780605044000,-500.0,0.00016737,2]
[424124473,1780605044000,-500.0,0.00016737,2]
[424124420,1780605044000,-500.0,0.00016737,2]
[424124357,1780605044000,-151.0,0.00016734,2]
[424124360,1780605044000,-2500000.0,0.00016737,2]
[424124362,1780605044000,-151.0,0.00016737,2]
[424124364,1780605044000,-151.0,0.00016737,2]
[424124374,1780605044000,-500.0,0.00016737,2]
[424124372,1780605044000,-1541.829306,0.00016737,2]
[424124376,1780605044000,-500.0,0.00016737,2]
[424124368,1780605044000,-1541.829306,0.00016737,2]
[424124378,1780605044000,-500.0,0.00016737,2]
[424124366,1780605044000,-1541.829306,0.00016737,2]
[424124370,1780605044000,-1541.829306,0.00016737,2]
[424124380,1780605044000,-500.0,0.00016737,2]
[424124384,1780605044000,-500.0,0.00016737,2]
[424124421,1780605044000,-500.0,0.00016737,2]
[424124386,1780605044000,-500.0,0.00016737,2]
[424124389,1780605044000,-500.0,0.00016737,2]
[424124391,1780605044000,-500.0,0.00016737,2]
[424124393,1780605044000,-500.0,0.00016737,2]
[424124395,1780605044000,-500.0,0.00016737,2]
[424124399,1780605044000,-500.0,0.00016737,2]
[424124403,1780605044000,-500.0,0.00016737,2]
[424124397,1780605044000,-500.0,0.00016737,2]
[424124401,1780605044000,-500.0,0.00016737,2]
[424124406,1780605044000,-500.0,0.00016737,2]
[424124409,1780605044000,-500.0,0.00016737,2]
[424124413,1780605044000,-500.0,0.00016737,2]
[424124411,1780605044000,-500.0,0.00016737,2]
[424124415,1780605044000,-500.0,0.00016737,2]
[424124382,1780605044000,-500.0,0.00016737,2]
[424124476,1780605044000,-298.342053,0.00016737,2]
[424124462,1780605044000,-500.0,0.00016737,2]
[424124478,1780605044000,-151.0,0.00016737,2]
[424124538,1780605044000,-500.0,0.00017036,2]
[424124544,1780605044000,-500.0,0.00017036,2]
[424124548,1780605044000,-500.0,0.00017036,2]
[424124552,1780605044000,-500.0,0.00017036,2]
[424124556,1780605044000,-500.0,0.00017036,2]
[424124550,1780605044000,-500.0,0.00017036,2]
[424124554,1780605044000,-612.93945237,0.00017036,2]
[424124558,1780605044000,-611.39331799,0.00017036,2]
[424124560,1780605044000,-500.0,0.00017036,2]
[424124563,1780605044000,-500.0,0.00017036,2]
[424124573,1780605044000,-500.0,0.00017036,2]
[424124576,1780605044000,-567.4,0.00017036,2]
[424124569,1780605044000,-500.0,0.00017036,2]
[424124546,1780605044000,-500.0,0.00017036,2]
[424124565,1780605044000,-500.0,0.00017036,2]
[424124578,1780605044000,-500.0,0.00017036,2]
[424124572,1780605044000,-500.0,0.00017036,2]
[424124580,1780605044000,-500.0,0.00017036,2]
[424124586,1780605044000,-500.0,0.00017036,2]
[424124582,1780605044000,-500.0,0.00017036,2]
[424124584,1780605044000,-500.0,0.00017036,2]
[424124599,1780605044000,-1093.34,0.00017036,2]
[424124588,1780605044000,-500.0,0.00017036,2]
[424124603,1780605044000,-1093.34,0.00017036,2]
[424124601,1780605044000,-1093.34,0.00017036,2]
[424124597,1780605044000,-1093.34,0.00017036,2]
[424124591,1780605044000,-500.0,0.00017036,2]
[424124595,1780605044000,-1093.34,0.00017036,2]
[424124567,1780605044000,-500.0,0.00017036,2]
[424124542,1780605044000,-500.0,0.00017036,2]
[424124467,1780605044000,-500.0,0.00016737,2]
[424124534,1780605044000,-500.0,0.00017036,2]
[424124540,1780605044000,-500.0,0.00017036,2]
[424124466,1780605044000,-500.0,0.00016737,2]
[424124475,1780605044000,-500.0,0.00016737,2]
[424124484,1780605044000,-834.811559,0.00016737,2]
[424124486,1780605044000,-834.811559,0.00016737,2]
[424124593,1780605044000,-1093.34,0.00017036,2]
[424124498,1780605044000,-948.17940241,0.00016783,7]
[424124496,1780605044000,-454.17693194,0.00016783,7]
[424124500,1780605044000,-553.1,0.000168,2]
[424124488,1780605044000,-834.811559,0.00016737,2]
[424124492,1780605044000,-151.0,0.00016737,2]
[424124490,1780605044000,-151.0,0.00016737,2]
[424124505,1780605044000,-1672.7364795,0.00016819,2]
[424124502,1780605044000,-2129.0,0.00016808,2]
[424124494,1780605044000,-154.2948,0.00016737,2]
[424124511,1780605044000,-1200.0,0.000169,6]
[424124507,1780605044000,-150.0,0.00016899,2]
[424124536,1780605044000,-500.0,0.00017036,2]
[424124529,1780605044000,-500.0,0.00017036,2]
[424124525,1780605044000,-500.0,0.00017036,2]
[424124517,1780605044000,-150.99,0.00016922,2]
[424124527,1780605044000,-500.0,0.00017036,2]
[424124523,1780605044000,-1093.34,0.00017035,2]
[424124532,1780605044000,-500.0,0.00017036,2]
[424124519,1780605044000,-9999.99,0.00016922,2]
[424124515,1780605044000,-999.99,0.00016922,2]
[424124513,1780605044000,-593.0,0.00016904,2]
[424124508,1780605044000,-277.75388502,0.00016899,2]
[424124521,1780605044000,-500.0,0.00017035,2]
[424124685,1780605045000,-157.41631796,0.00017284,2]
[424124693,1780605045000,-163.0,0.0001734,2]
[424124691,1780605045000,-163.0,0.0001734,2]
[424124687,1780605045000,-443.0,0.00017304,2]
[424124682,1780605045000,-233353.63987759,0.0001719,2]
[424124676,1780605045000,-75586.8179002,0.00017148,2]
[424124673,1780605045000,-500.0,0.00017147,2]
[424124681,1780605045000,-151.0,0.00017187,2]
[424124678,1780605045000,-31469.3771481,0.0001715,2]
[424124674,1780605045000,-500.0,0.00017147,2]
[424124697,1780605045000,-500.0,0.00017357,2]
[424124689,1780605045000,-451.0,0.00017304,2]
[424124695,1780605045000,-159.59575558,0.00017342,2]
[424124735,1780605045000,-500.0,0.00017357,2]
[424124702,1780605045000,-500.0,0.00017357,2]
[424124700,1780605045000,-500.0,0.00017357,2]
[424124704,1780605045000,-500.0,0.00017357,2]
[424124710,1780605045000,-500.0,0.00017357,2]
[424124708,1780605045000,-500.0,0.00017357,2]
[424124712,1780605045000,-500.0,0.00017357,2]
[424124714,1780605045000,-500.0,0.00017357,2]
[424124716,1780605045000,-500.0,0.00017357,2]
[424124729,1780605045000,-500.0,0.00017357,2]
[424124731,1780605045000,-494.05405209,0.00017357,2]
[424124733,1780605045000,-500.0,0.00017357,2]
[424124718,1780605045000,-500.0,0.00017357,2]
[424124680,1780605045000,-920.0228702,0.0001715,2]
[424124706,1780605045000,-500.0,0.00017357,2]
[424124671,1780605045000,-1156.78,0.00017147,2]
[424124649,1780605045000,-151.0,0.00017143,2]
[424124669,1780605045000,-500.0,0.00017147,2]
[424124720,1780605045000,-500.0,0.00017357,2]
[424124607,1780605045000,-1093.34,0.00017036,2]
[424124605,1780605045000,-1093.34,0.00017036,2]
[424124615,1780605045000,-452.0,0.00017037,2]
[424124613,1780605045000,-6453.0,0.00017036,2]
[424124611,1780605045000,-1093.34,0.00017036,2]
[424124629,1780605045000,-444.0,0.00017037,2]
[424124627,1780605045000,-151.0,0.00017037,2]
[424124617,1780605045000,-151.0,0.00017037,2]
[424124619,1780605045000,-450.0,0.00017037,2]
[424124633,1780605045000,-632.72,0.00017037,2]
[424124631,1780605045000,-451.0,0.00017037,2]
[424124621,1780605045000,-451.0,0.00017037,2]